bitfinex/quotes_SOLUSD_20220129
["timestamp","ask_amount","ask_price","bid_price","bid_amount"]
[1643498615502,6.0,95.268,95.192,6.0]
[1643498615654,6.0,95.268,95.193,6.0]
[1643498615828,6.0,95.268,95.194,0.25]
[1643498616028,6.0,95.268,94.356,0.2]
[1643498616029,104.2,95.267,95.168,2.18075067]
[1643498616229,102.7,95.267,95.147,0.06574644]
[1643498616445,15.765,95.24,95.147,0.06574644]
[1643498616704,37.49182688,95.239,95.147,0.06574644]
[1643498616834,15.12,95.24,95.148,2.18075067]
[1643498617026,24.8503,95.255,95.148,2.18075067]
[1643498617229,6.0,95.257,95.148,2.18075067]
[1643498617437,6.0,95.245,95.158,6.0]
[1643498617652,0.25,95.254,95.15,15.754]
[1643498617653,0.25,95.254,95.168,6.0]
[1643498617842,13.34,95.245,95.147,0.06574644]
[1643498618032,6.0,95.235,95.147,0.06574644]
[1643498618245,15.12,95.23,95.147,0.06574644]
[1643498618431,15.768,95.22,95.147,0.06574644]
[1643498618706,36.38531736,95.218,95.147,0.06574644]
[1643498618835,6.0,95.21,95.147,0.06574644]
[1643498619041,6.0,95.207,95.147,0.06574644]
[1643498619433,0.25,95.206,95.147,0.06574644]
[1643498622283,104.45,95.206,95.147,0.06574644]
[1643498622471,26.01438977,95.196,95.147,0.06574644]
[1643498622767,0.25,95.195,95.147,0.06574644]
[1643498625278,104.45,95.195,95.147,0.06574644]
[1643498625675,6.0,95.185,95.147,0.06574644]
[1643498625872,0.25,95.184,95.147,0.06574644]
[1643498626075,6.0,95.185,95.147,0.06574644]
[1643498626286,6.0,95.186,95.147,0.06574644]
[1643498626884,0.25,95.185,95.147,0.06574644]
[1643498627072,6.0,95.186,95.147,0.06574644]
[1643498627575,0.25,95.185,95.147,0.06574644]
[1643498627975,6.25,95.185,95.147,0.06574644]
[1643498631976,0.25,95.185,95.147,0.06574644]
[1643498632246,6.0,95.175,95.147,0.06574644]
[1643498632387,35.02508218,95.174,95.147,0.06574644]
[1643498634182,104.2,95.173,95.147,0.06574644]
[1643498634391,6.0,95.164,95.147,0.06574644]
[1643498634594,110.2,95.163,95.147,0.06574644]
[1643498634796,0.25,95.162,95.147,0.06574644]
[1643498635179,110.2,95.163,95.147,0.06574644]
[1643498635468,15.777,95.16,95.147,0.06574644]
[1643498635590,6.0,95.15,95.147,0.06574644]
[1643498636023,6.0,95.149,95.147,0.06574644]
[1643498636183,104.2,95.148,95.147,0.06574644]
[1643498636391,0.25,95.148,95.147,0.06574644]
[1643498637480,27.62462495,95.159,95.147,0.06574644]
[1643498637720,6.0,95.149,95.147,0.06574644]
[1643498637880,0.25,95.148,95.147,0.06574644]
[1643498638380,27.62462495,95.159,95.147,0.06574644]
[1643498638587,104.45,95.158,95.147,0.06574644]
[1643498638782,6.0,95.149,95.147,0.06574644]
[1643498638984,6.0,95.148,95.147,0.06574644]
[1643498639191,6.25,95.148,95.147,0.06574644]
[1643498641913,0.25,95.148,95.147,0.06574644]
[1643498642124,27.62462495,95.159,95.147,0.06574644]
[1643498643718,15.773,95.19,95.147,0.06574644]
[1643498643920,15.12,95.18,95.147,0.06574644]
[1643498644116,21.12,95.18,95.147,0.06574644]
[1643498644338,6.0,95.18,95.147,0.06574644]
[1643498644523,6.0,95.182,95.147,0.06574644]
[1643498644933,40.67135677,95.181,95.147,0.06574644]
[1643498645374,0.25,95.18,95.147,0.06574644]
[1643498648629,6.0,95.171,95.147,0.06574644]
[1643498648825,0.25,95.17,95.147,0.06574644]
[1643498652529,6.25,95.17,95.147,0.06574644]
[1643498652931,6.0,95.169,95.147,0.06574644]
[1643498653125,19.81,95.169,95.147,0.06574644]
[1643498653359,6.0,95.16,95.147,0.06574644]
[1643498653533,27.72835036,95.159,95.147,0.06574644]
[1643498653730,27.97835036,95.159,95.147,0.06574644]
[1643498656843,104.2,95.158,95.147,0.00574644]
[1643498657045,6.0,95.148,95.147,0.00574644]
[1643498657335,16.44,95.148,95.147,0.00574644]
[1643498657633,120.64,95.148,95.147,0.00574644]
[1643498657748,16.44,95.148,95.147,0.00574644]
[1643498658334,120.64,95.148,95.147,0.00574644]
[1643498660330,16.44,95.148,95.147,0.00574644]
[1643498660533,120.64,95.148,95.147,0.00574644]
[1643498661335,120.64,95.148,95.147,0.13149288]
[1643498661934,120.64,95.148,95.147,0.00149288]
[1643498664242,123.59669142,95.148,95.147,0.00149288]
[1643498664644,16.0,95.147,95.114,0.12871864]
[1643498664854,104.2,95.139,95.114,0.3917044]
[1643498665039,104.2,95.128,95.114,0.7834088]
[1643498665278,15.12,95.12,95.114,0.51487456]
[1643498665451,6.0,95.118,95.085,0.27676894]
[1643498665741,104.2,95.109,95.085,0.27676894]
[1643498665939,104.2,95.099,95.085,0.27676894]
[1643498666138,15.12,95.1,95.085,0.27676894]
[1643498666139,104.2,95.097,95.085,0.27676894]
[1643498666379,104.2,95.088,95.085,0.27676894]
[1643498666740,0.25,95.087,95.085,0.27676894]
[1643498666952,23.6657,95.087,95.085,0.27676894]
[1643498667148,104.2,95.086,95.085,0.27676894]
[1643498667397,104.45,95.086,95.085,0.27676894]
[1643498667755,0.25,95.086,95.085,0.27676894]
[1643498668555,23.4157,95.087,95.085,0.27676894]
[1643498669444,15.12,95.09,95.085,0.27676894]
[1643498670449,15.12,95.11,95.085,0.27676894]
[1643498670646,15.12,95.12,95.085,0.27676894]
[1643498670845,15.12,95.14,95.085,0.27676894]
[1643498671449,46.50867916,95.139,95.085,0.27676894]
[1643498672547,0.25,95.138,95.085,0.27676894]
[1643498674159,15.12,95.14,95.085,0.27676894]
[1643498674357,21.18439994,95.16,95.085,0.27676894]
[1643498674550,6.0,95.15,95.085,0.27676894]
[1643498674751,0.25,95.149,95.085,0.27676894]
[1643498674969,37.37707708,95.149,95.085,0.27676894]
[1643498675350,6.0,95.139,95.085,0.27676894]
[1643498676554,6.0,95.15,95.085,0.27676894]
[1643498676779,0.25,95.149,95.085,0.27676894]
[1643498677854,6.0,95.142,95.085,0.27676894]
[1643498678307,0.25,95.141,95.085,0.27676894]
[1643498679259,0.25,95.148,95.085,0.27676894]
[1643498679860,1.43322405,95.199,95.085,0.27676894]
[1643498680065,6.06439994,95.16,95.086,106.38692813]
[1643498680266,6.06439994,95.16,95.087,0.35]
[1643498680505,6.06439994,95.16,95.087,2.53692813]
[1643498680761,6.06439994,95.16,95.087,0.1]
[1643498680762,6.0,95.15,95.087,0.1]
[1643498680962,6.0,95.15,95.085,0.27676894]
[1643498681397,6.0,95.149,95.085,0.27676894]
[1643498681990,6.06439994,95.16,95.085,0.27676894]
[1643498682386,0.25,95.159,95.085,0.27676894]
[1643498682593,6.0,95.15,95.085,0.27676894]
[1643498682793,0.25,95.149,95.085,0.27676894]
[1643498683191,6.0,95.16,95.085,0.27676894]
[1643498683192,21.12,95.16,95.085,0.27676894]
[1643498683487,0.25,95.159,95.085,0.27676894]
[1643498684295,6.0,95.155,95.085,0.27676894]
[1643498684496,6.0,95.154,95.085,0.27676894]
[1643498684793,15.12,95.14,95.085,0.27676894]
[1643498684992,15.12,95.14,95.07,1.2699388]
[1643498685295,0.25,95.139,95.071,0.25]
[1643498686492,0.25,95.139,95.064,0.08956394]
[1643498686706,15.12,95.14,95.064,0.08956394]
[1643498686907,0.25,95.139,95.064,0.08956394]
[1643498687803,0.25,95.139,95.064,0.33956394]
[1643498689802,0.25,95.139,95.064,0.08956394]
[1643498690010,6.0,95.13,95.064,0.08956394]
[1643498690309,46.6461592,95.129,95.064,0.08956394]
[1643498690572,6.0,95.119,95.064,0.08956394]
[1643498690900,13.72,95.119,95.064,0.08956394]
[1643498692300,0.25,95.129,95.064,0.08956394]
[1643498692701,33.10273478,95.139,95.064,0.08956394]
[1643498692965,33.10273478,95.139,95.064,0.33956394]
[1643498693300,0.25,95.139,95.065,2.18692534]
[1643498693512,0.25,95.139,95.064,0.33956394]
[1643498693701,6.0,95.13,95.064,0.33956394]
[1643498693911,0.25,95.129,95.064,0.08956394]
[1643498694904,0.25,95.129,95.064,0.33956394]
[1643498695179,0.25,95.139,95.064,0.33956394]
[1643498696003,23.9611,95.159,95.065,2.18602121]
[1643498696219,0.25,95.158,95.065,2.28602121]
[1643498696405,6.0,95.149,95.065,2.28602121]
[1643498696610,6.0,95.149,95.066,2.18602121]
[1643498696814,0.25,95.148,95.066,2.18602121]
[1643498697033,15.771,95.2,95.076,6.0]
[1643498697269,15.771,95.2,95.077,22.6849]
[1643498697270,15.12,95.17,95.077,22.6849]
[1643498697430,15.771,95.2,95.078,0.1]
[1643498697624,15.771,95.2,95.087,6.0]
[1643498697815,15.12,95.19,95.087,6.0]
[1643498698019,40.74245894,95.174,95.087,6.0]
[1643498698218,40.74245894,95.174,95.088,2.19385094]
[1643498698525,6.0,95.164,95.08,0.1]
[1643498698717,6.0,95.164,95.078,0.1]
[1643498698934,6.25,95.163,95.078,0.1]
[1643498699389,52.574,95.22,95.078,0.1]
[1643498699390,133.53397387,95.267,95.173,10.96488986]
[1643498699549,2.8732584,95.266,95.2,188.95]
[1643498699725,3.0,95.344,95.218,0.31462931]
[1643498699925,4.3098876,95.385,95.231,104.2]
[1643498700137,4.3098876,95.385,95.23,15.12]
[1643498700138,37.34144942,95.384,95.243,0.3119807]
[1643498700340,37.34144942,95.384,95.283,0.30257449]
[1643498700629,37.34144942,95.384,95.28,15.12]
[1643498701139,2.95669142,95.383,95.28,15.12]
[1643498701343,15.743,95.37,95.28,15.12]
[1643498701555,38.192425,95.368,95.25,15.12]
[1643498701759,3.0,95.365,95.25,15.12]
[1643498701939,6.0,95.358,95.25,15.12]
[1643498702140,104.2,95.354,95.25,15.12]
[1643498702341,44.54238834,95.353,95.25,15.12]
[1643498702541,15.75,95.33,95.25,15.12]
[1643498702943,6.0,95.32,95.25,15.12]
[1643498703349,6.25,95.319,95.25,15.12]
[1643498703747,6.25,95.319,95.23,15.12]
[1643498703948,9.20669142,95.319,95.23,15.12]
[1643498704147,38.4654722,95.309,95.23,15.12]
[1643498704644,6.0,95.299,95.23,14.62]
[1643498705847,0.25,95.298,95.23,14.62]
[1643498706448,2.95669142,95.297,95.21,15.12]
[1643498706888,44.28625753,95.286,95.21,15.12]
[1643498707048,6.0,95.276,95.21,15.12]
[1643498707248,0.25,95.275,95.211,0.25]
[1643498708670,0.25,95.285,95.211,0.25]
[1643498709554,6.0,95.276,95.211,0.25]
[1643498709768,0.25,95.275,95.211,0.25]
[1643498710954,44.28625753,95.286,95.211,0.25]
[1643498710955,0.25,95.285,95.211,0.25]
[1643498711579,6.0,95.276,95.211,0.25]
[1643498711756,104.45,95.275,95.133,0.1]
[1643498712059,104.2,95.264,95.15,15.12]
[1643498712271,43.83763164,95.263,95.15,15.12]
[1643498712463,6.0,95.254,95.15,15.12]
[1643498712767,6.25,95.253,95.15,15.12]
[1643498713156,6.0,95.252,95.151,0.25]
[1643498713360,0.25,95.251,95.16,6.0]
[1643498714558,0.25,95.252,95.16,6.0]
[1643498714787,0.25,95.252,95.161,0.25]
[1643498715166,6.25,95.252,95.161,0.25]
[1643498715359,6.0,95.25,95.161,0.25]
[1643498715559,6.0,95.242,95.161,0.25]
[1643498715760,37.99466068,95.241,95.161,0.25]
[1643498716171,6.0,95.242,95.161,0.25]
[1643498716374,6.0,95.242,95.17,6.0]
[1643498716561,3.0,95.286,95.18,15.12]
[1643498716761,3.0,95.286,95.171,6.0]
[1643498716762,104.2,95.322,95.19,15.12]
[1643498717045,104.2,95.322,95.2,15.12]
[1643498717164,36.21172877,95.311,95.2,21.12]
[1643498717375,36.21172877,95.311,95.201,0.25]
[1643498717563,36.21172877,95.311,95.2,21.12]
[1643498717965,15.753,95.31,95.2,21.12]
[1643498718974,15.753,95.31,95.201,0.25]
[1643498719773,0.25,95.309,95.201,0.25]
[1643498719969,6.0,95.3,95.201,0.25]
[1643498720271,0.25,95.299,95.201,0.25]
[1643498720478,6.25,95.299,95.201,0.25]
[1643498720665,6.0,95.298,95.201,0.25]
[1643498720866,35.38083366,95.288,95.201,0.25]
[1643498721068,35.38083366,95.288,95.21,6.0]
[1643498721381,0.25,95.287,95.211,0.25]
[1643498721671,6.0,95.278,95.211,0.25]
[1643498721866,0.25,95.277,95.211,0.25]
[1643498722470,35.38083366,95.288,95.22,12.61]
[1643498722677,35.38083366,95.288,95.23,12.61]
[1643498722866,3.0,95.331,95.231,0.25]
[1643498723068,6.0,95.316,95.24,6.0]
[1643498723383,0.25,95.315,95.241,0.25]
[1643498723574,3.0,95.331,95.241,0.25]
[1643498723767,37.51046199,95.33,95.241,0.25]
[1643498724621,37.51046199,95.33,95.231,0.25]
[1643498724781,0.25,95.329,95.231,0.25]
[1643498725679,6.0,95.32,95.231,0.25]
[1643498725875,0.25,95.319,95.231,0.25]
[1643498726075,0.25,95.319,95.221,0.25]
[1643498726500,0.25,95.319,95.23,6.0]
[1643498726937,6.25,95.319,95.231,0.25]
[1643498727098,6.25,95.319,95.22,12.36]
[1643498728298,6.25,95.319,95.221,0.25]
[1643498728707,107.15669142,95.318,95.221,0.25]
[1643498728899,15.756,95.29,95.214,0.25]
[1643498729125,6.0,95.28,95.2,6.0]
[1643498729300,33.22270604,95.279,95.201,0.25]
[1643498733417,0.25,95.279,95.201,0.25]
[1643498733810,15.75,95.33,95.201,0.25]
[1643498734009,48.54,95.365,95.21,6.0]
[1643498734211,12.61,95.36,95.22,12.61]
[1643498734524,43.95285229,95.347,95.221,127.0071]
[1643498734706,43.95285229,95.347,95.23,6.0]
[1643498734922,6.0,95.337,95.24,12.61]
[1643498735221,6.0,95.337,95.25,6.0]
[1643498735405,6.0,95.337,95.251,0.25]
[1643498735606,6.0,95.337,95.25,6.0]
[1643498735607,6.25,95.336,95.25,6.0]
[1643498735808,6.25,95.336,95.251,0.25]
[1643498736811,6.25,95.336,95.241,0.25]
[1643498737010,6.0,95.327,95.241,0.25]
[1643498737207,36.77415688,95.326,95.241,0.25]
[1643498737411,6.0,95.325,95.241,0.25]
[1643498737609,37.02415688,95.326,95.241,0.25]
[1643498738110,37.02415688,95.326,95.25,6.0]
[1643498738313,37.02415688,95.326,95.251,0.25]
[1643498739511,37.02415688,95.326,95.241,0.25]
[1643498740126,6.0,95.316,95.241,0.25]
[1643498740327,0.25,95.315,95.241,0.25]
[1643498740517,0.25,95.315,95.243,6.0]
[1643498740991,0.25,95.315,95.244,0.25]
[1643498741166,0.25,95.315,95.234,0.25]
[1643498741814,0.25,95.325,95.234,0.25]
[1643498742716,0.25,95.325,95.243,6.0]
[1643498742935,6.0,95.316,95.22,12.61]
[1643498743124,6.0,95.31,95.199,19.48495284]
[1643498743377,34.97628664,95.309,95.199,15.4243]
[1643498743515,6.0,95.299,95.199,15.4243]
[1643498743920,0.25,95.298,95.199,15.4243]
[1643498744124,15.756,95.29,95.2,0.25]
[1643498744322,44.96064354,95.289,95.2,0.25]
[1643498744527,6.0,95.279,95.2,0.25]
[1643498744927,0.25,95.278,95.2,0.25]
[1643498745617,6.25,95.278,95.2,0.25]
[1643498749429,6.25,95.278,95.13,4.37982653]
[1643498749430,6.25,95.278,95.192,0.25]
[1643498749639,6.0,95.27,95.191,0.25]
[1643498749825,104.2,95.268,95.185,6.0]
[1643498750023,6.0,95.259,95.185,6.0]
[1643498750225,6.0,95.258,95.185,6.0]
[1643498750424,104.2,95.257,95.185,6.0]
[1643498750741,45.38596938,95.246,95.185,6.0]
[1643498751123,6.0,95.236,95.185,6.0]
[1643498751324,0.25,95.235,95.185,6.0]
[1643498751542,0.25,95.235,95.186,0.25]
[1643498751745,0.25,95.235,95.181,0.25]
[1643498751927,6.0,95.236,95.181,0.25]
[1643498752125,0.25,95.235,95.181,0.25]
[1643498752752,45.38596938,95.246,95.181,0.25]
[1643498753152,0.25,95.245,95.181,0.25]
[1643498756156,0.25,95.245,95.18,12.61]
[1643498756358,6.0,95.236,95.175,15.4739]
[1643498756765,0.25,95.245,95.175,14.4739]
[1643498757022,0.25,95.235,95.175,14.4739]
[1643498757170,0.25,95.245,95.175,14.4739]
[1643498757560,0.25,95.245,95.176,0.25]
[1643498758208,0.25,95.245,95.175,14.4739]
[1643498758361,0.25,95.245,95.176,0.25]
[1643498758560,0.25,95.245,95.175,14.4739]
[1643498758784,0.25,95.245,95.176,0.25]
[1643498760979,0.25,95.245,95.185,6.0]
[1643498761278,0.25,95.245,95.186,0.25]
[1643498762874,0.25,95.245,95.175,14.4739]
[1643498763078,0.25,95.245,95.176,0.25]
[1643498766878,45.38596938,95.246,95.176,0.25]
[1643498768072,0.25,95.245,95.176,0.25]
[1643498768922,45.38596938,95.246,95.176,0.25]
[1643498769082,0.25,95.245,95.176,0.25]
[1643498769882,45.38596938,95.246,95.176,0.25]
[1643498770186,0.25,95.245,95.176,0.25]
[1643498772400,0.25,95.245,95.175,14.4739]
[1643498772602,6.0,95.236,95.175,14.4739]
[1643498772811,0.25,95.235,95.175,14.4739]
[1643498773010,45.38596938,95.246,95.175,14.4739]
[1643498773301,0.25,95.245,95.175,14.4739]
[1643498773705,0.25,95.245,95.176,0.25]
[1643498774716,104.2,95.276,95.176,0.25]
[1643498774979,0.25,95.275,95.176,46.961]
[1643498775102,6.0,95.266,95.176,46.961]
[1643498775329,0.25,95.265,95.176,46.961]
[1643498775702,44.18448928,95.265,95.176,46.961]
[1643498776103,6.0,95.255,95.176,46.961]
[1643498776307,0.25,95.254,95.176,46.961]
[1643498777108,6.0,95.255,95.176,46.961]
[1643498777404,0.25,95.254,95.176,46.961]
[1643498777627,104.45,95.254,95.176,46.711]
[1643498777814,0.25,95.254,95.176,46.711]
[1643498778007,33.14504238,95.243,95.176,46.711]
[1643498778425,0.25,95.242,95.176,46.711]
[1643498778806,0.25,95.242,95.175,14.4739]
[1643498779629,34.02090778,95.253,95.175,14.4739]
[1643498780209,6.0,95.243,95.175,14.4739]
[1643498780425,0.25,95.242,95.175,14.4739]
[1643498781424,0.25,95.242,95.176,0.25]
[1643498783016,0.25,95.252,95.176,0.25]
[1643498784011,6.0,95.243,95.176,0.25]
[1643498784221,33.77090778,95.253,95.176,0.25]
[1643498784411,3.0,95.301,95.18,15.14]
[1643498784615,6.0,95.269,95.19,6.0]
[1643498784816,6.0,95.269,95.191,24.3697]
[1643498785025,6.0,95.296,95.201,6.0]
[1643498785428,45.39518411,95.295,95.202,0.25]
[1643498785628,6.0,95.285,95.202,0.25]
[1643498785815,0.25,95.284,95.202,0.25]
[1643498786026,6.25,95.284,95.202,0.25]
[1643498786413,6.0,95.28,95.202,0.25]
[1643498786613,41.62715402,95.279,95.202,0.25]
[1643498786818,24.3358,95.294,95.202,0.25]
[1643498787133,24.3358,95.294,95.202,6.25]
[1643498787315,15.752,95.31,95.202,6.25]
[1643498787316,2.95669142,95.323,95.202,0.25]
[1643498787612,6.0,95.298,95.21,6.0]
[1643498787821,39.55286593,95.297,95.211,0.25]
[1643498788013,6.0,95.287,95.211,0.25]
[1643498788822,0.25,95.286,95.211,0.25]
[1643498789021,0.25,95.286,95.21,6.0]
[1643498789288,0.25,95.286,95.211,0.25]
[1643498789628,6.0,95.287,95.211,0.25]
[1643498789819,0.25,95.286,95.211,0.25]
[1643498791637,6.0,95.287,95.211,0.25]
[1643498791826,0.25,95.286,95.211,0.25]
[1643498793121,3.0,95.325,95.211,104.45]
[1643498793326,0.25,95.322,95.212,8.22219674]
[1643498793521,6.0,95.321,95.222,110.2]
[1643498793782,6.0,95.321,95.23,15.14]
[1643498793922,6.0,95.329,95.23,15.14]
[1643498794123,40.99135329,95.328,95.231,0.25]
[1643498794423,22.8711,95.327,95.231,0.25]
[1643498794640,6.0,95.317,95.231,0.25]
[1643498794840,0.25,95.316,95.231,0.25]
[1643498795030,6.0,95.317,95.231,0.25]
[1643498795222,0.25,95.316,95.231,0.25]
[1643498796983,0.25,95.316,95.23,15.14]
[1643498797328,6.0,95.317,95.23,15.14]
[1643498798324,6.0,95.317,95.231,0.25]
[1643498798724,5.98,95.317,95.231,0.25]
[1643498798930,40.99135329,95.328,95.24,6.0]
[1643498799142,40.99135329,95.328,95.241,29.9632]
[1643498799377,40.99135329,95.328,95.241,30.2132]
[1643498800128,2.95669142,95.327,95.241,30.2132]
[1643498800341,6.0,95.318,95.241,30.2132]
[1643498800591,6.0,95.317,95.241,30.2132]
[1643498800729,9.20669142,95.317,95.241,30.2132]
[1643498800928,6.0,95.316,95.241,30.2132]
[1643498801131,6.0,95.307,95.241,6.25]
[1643498801330,37.44369267,95.306,95.241,6.25]
[1643498801617,43.44369267,95.306,95.23,6.25]
[1643498801746,62.85516193,95.298,95.175,0.0039]
[1643498801954,3.0,95.268,95.175,0.0039]
[1643498802137,0.31516193,95.298,95.175,0.0039]
[1643498802138,3.0,95.225,95.175,0.0039]
[1643498802345,0.25,95.224,95.175,0.0039]
[1643498802668,3.0,95.225,95.175,0.0039]
[1643498802844,3.0,95.268,95.175,0.0039]
[1643498803039,6.0,95.258,95.175,0.0039]
[1643498803539,0.25,95.257,95.175,0.0039]
[1643498804547,6.0,95.258,95.175,0.0039]
[1643498804746,45.11751304,95.257,95.175,0.0039]
[1643498804953,45.36751304,95.257,95.175,0.0039]
[1643498805181,6.0,95.247,95.175,0.0039]
[1643498805384,0.25,95.246,95.175,0.0039]
[1643498806577,0.25,95.25,95.175,0.0039]
[1643498806769,6.0,95.258,95.175,0.0039]
[1643498806770,0.25,95.257,95.175,0.0039]
[1643498808567,6.0,95.259,95.176,104.2]
[1643498808767,37.42371744,95.279,95.186,6.0]
[1643498808967,37.42371744,95.279,95.19,15.14]
[1643498809179,1.43169376,95.303,95.19,15.14]
[1643498809381,26.09669376,95.305,95.2,6.0]
[1643498809567,6.0,95.295,95.2,6.0]
[1643498809776,6.0,95.295,95.201,0.25]
[1643498809970,6.0,95.295,95.206,6.0]
[1643498810307,6.0,95.289,95.206,6.0]
[1643498810371,6.0,95.295,95.211,104.2]
[1643498810570,1.43169376,95.298,95.221,6.0]
[1643498810768,15.14,95.36,95.221,6.0]
[1643498810769,1.43169376,95.317,95.222,104.45]
[1643498810972,1.43169376,95.319,95.23,6.0]
[1643498811175,1.43169376,95.319,95.232,6.0]
[1643498811425,45.56671551,95.318,95.233,0.25]
[1643498811570,1.43169376,95.317,95.233,0.25]
[1643498811775,3.0,95.305,95.233,0.25]
[1643498812183,35.24289438,95.294,95.233,0.25]
[1643498812572,35.24289438,95.294,95.221,0.25]
[1643498813381,0.25,95.293,95.178,409.89134962]
[1643498813582,6.0,95.284,95.221,0.25]
[1643498813782,15.14,95.28,95.198,6.0]
[1643498813994,39.31759638,95.279,95.199,0.25]
[1643498814305,6.0,95.27,95.199,0.25]
[1643498814485,6.0,95.269,95.199,0.25]
[1643498814689,6.25,95.269,95.199,0.25]
[1643498814884,0.25,95.268,95.199,0.25]
[1643498815084,0.25,95.268,95.189,0.25]
[1643498815293,0.25,95.268,95.188,6.0]
[1643498816290,6.0,95.269,95.188,6.0]
[1643498816684,0.25,95.268,95.188,6.0]
[1643498817294,15.14,95.27,95.189,0.25]
[1643498817961,15.14,95.27,95.187,0.25]
[1643498818692,0.25,95.269,95.187,0.25]
[1643498819292,38.31748807,95.259,95.187,0.25]
[1643498819796,0.25,95.258,95.187,0.25]
[1643498820167,0.25,95.258,95.177,0.25]
[1643498820493,0.25,95.258,95.186,6.0]
[1643498820896,0.25,95.258,95.187,0.25]
[1643498822027,6.0,95.249,95.187,0.25]
[1643498822203,6.0,95.249,95.177,0.25]
[1643498822464,0.25,95.248,95.177,0.25]
[1643498822794,0.25,95.248,95.186,6.0]
[1643498823194,0.25,95.248,95.187,0.25]
[1643498823394,0.25,95.248,95.177,0.25]
[1643498823796,0.25,95.248,95.171,6.0]
[1643498826125,0.25,95.248,95.172,0.25]
[1643498828129,0.25,95.248,95.171,5.7539]
[1643498828939,0.25,95.248,95.171,21.2754]
[1643498830319,0.25,95.248,95.172,0.25]
[1643498832428,0.25,95.248,95.171,21.2754]
[1643498833834,0.25,95.248,95.172,0.25]
[1643498834429,6.0,95.249,95.172,0.25]
[1643498835943,6.0,95.249,95.171,21.2754]
[1643498836233,0.25,95.248,95.171,21.2754]
[1643498837433,0.25,95.248,95.172,0.25]
[1643498838709,0.25,95.248,95.172,104.45]
[1643498838851,0.25,95.248,95.172,0.25]
[1643498839439,0.25,95.248,95.175,6.0]
[1643498840044,0.25,95.248,95.176,0.25]
[1643498841640,0.25,95.248,95.175,6.0]
[1643498842048,6.0,95.24,95.175,6.0]
[1643498842265,45.91020424,95.239,95.175,6.0]
[1643498842446,6.0,95.237,95.175,6.0]
[1643498842672,39.91020424,95.239,95.175,6.0]
[1643498843125,2.95669142,95.236,95.175,6.0]
[1643498843285,0.25,95.235,95.175,6.0]
[1643498843773,2.95669142,95.234,95.175,6.0]
[1643498844283,0.25,95.233,95.171,15.5215]
[1643498844475,36.29514873,95.219,95.171,15.5215]
[1643498844670,15.14,95.22,95.171,15.5215]
[1643498844884,0.25,95.218,95.171,15.5215]
[1643498845771,42.33681817,95.219,95.171,15.5215]
[1643498849476,15.14,95.22,95.171,15.5215]